[Event "Titled Tuesday Blitz February 14 Late 2023"]
[White "Dzierzak, Radoslaw"]
[Black "Amburgy, Ryan"]
[WhiteFideId "1161407"]
[BlackFideId "30924820"]
[WhiteElo "2220"]
[BlackElo "2246"]
[Result "1-0"]
[Round "02"]
[TimeControl "180+2"]
[Date "2023.02.14"]
[WhiteClock "0:00:10"]
[BlackClock "0:00:12"]

1. e4 {[%clk 0:03:00]}  c6 {[%clk 0:02:59]} 2. Nf3 {[%clk 0:03:01]}  d5 {[%clk 0:03:00]} 3. Nc3 {[%clk 0:03:01]}  dxe4 {[%clk 0:03:00]} 4. Nxe4 {[%clk 0:03:02]}  Nf6 {[%clk 0:03:00]} 5. Qe2 {[%clk 0:03:02]}  Nxe4 {[%clk 0:03:00]} 6. Qxe4 {[%clk 0:03:03]}  Nd7 {[%clk 0:03:01]} 7. Bc4 {[%clk 0:03:03]}  Nf6 {[%clk 0:03:02]} 8. Ne5 {[%clk 0:03:04]}  e6 {[%clk 0:03:02]} 9. Qe2 {[%clk 0:03:04]}  b5 {[%clk 0:03:03]} 10. Bb3 {[%clk 0:03:03]}  Qc7 {[%clk 0:03:03]} 11. d4 {[%clk 0:03:03]}  Bd6 {[%clk 0:03:03]} 12. O-O {[%clk 0:03:02]}  O-O {[%clk 0:03:03]} 13. Bf4 {[%clk 0:03:02]}  Nd5 {[%clk 0:03:02]} 14. Bg3 {[%clk 0:03:01]}  f5 {[%clk 0:02:53]} 15. f3 {[%clk 0:02:37]}  c5 {[%clk 0:02:35]} 16. dxc5 {[%clk 0:02:23]}  Bxc5+ {[%clk 0:02:28]} 17. Kh1 {[%clk 0:02:23]}  Qb6 {[%clk 0:02:23]} 18. Nd3 {[%clk 0:02:06]}  Bd6 {[%clk 0:02:07]} 19. Bxd5 {[%clk 0:02:01]}  exd5 {[%clk 0:02:07]} 20. Bxd6 {[%clk 0:02:01]}  Qxd6 {[%clk 0:02:08]} 21. Qe5 {[%clk 0:01:51]}  Rd8 {[%clk 0:02:05]} 22. Rfe1 {[%clk 0:01:45]}  Kf7 {[%clk 0:01:56]} 23. Rad1 {[%clk 0:01:32]}  Be6 {[%clk 0:01:31]} 24. Nf4 {[%clk 0:01:24]}  Qxe5 {[%clk 0:01:24]} 25. Rxe5 {[%clk 0:01:25]}  Rd6 {[%clk 0:01:24]} 26. Nxe6 {[%clk 0:01:16]}  Rxe6 {[%clk 0:01:24]} 27. Rxf5+ {[%clk 0:01:17]}  Kg6 {[%clk 0:01:20]} 28. Rfxd5 {[%clk 0:01:14]}  Rae8 {[%clk 0:01:19]} 29. h4 {[%clk 0:01:11]}  Re2 {[%clk 0:01:19]} 30. R1d2 {[%clk 0:01:06]}  h5 {[%clk 0:01:16]} 31. Rg5+ {[%clk 0:00:59]}  Kf7 {[%clk 0:01:09]} 32. Rd7+ {[%clk 0:00:57]}  Kf6 {[%clk 0:01:08]} 33. Rc5 {[%clk 0:00:27]}  a6 {[%clk 0:01:00]} 34. Rd6+ {[%clk 0:00:26]}  R8e6 {[%clk 0:00:57]} 35. Rxe6+ {[%clk 0:00:26]}  Kxe6 {[%clk 0:00:58]} 36. Kg1 {[%clk 0:00:25]}  Rd2 {[%clk 0:00:56]} 37. Kf1 {[%clk 0:00:24]}  g6 {[%clk 0:00:56]} 38. Rc6+ {[%clk 0:00:23]}  Kf5 {[%clk 0:00:56]} 39. Kg1 {[%clk 0:00:17]}  b4 {[%clk 0:00:53]} 40. Kh2 {[%clk 0:00:18]}  a5 {[%clk 0:00:49]} 41. Kg3 {[%clk 0:00:18]}  a4 {[%clk 0:00:48]} 42. Rc4 {[%clk 0:00:16]}  b3 {[%clk 0:00:48]} 43. cxb3 {[%clk 0:00:12]}  axb3 {[%clk 0:00:49]} 44. axb3 {[%clk 0:00:12]}  Rxb2 {[%clk 0:00:50]} 45. b4 {[%clk 0:00:12]}  Kf6 {[%clk 0:00:50]} 46. Kh3 {[%clk 0:00:10]}  Rb3 {[%clk 0:00:49]} 47. Kg3 {[%clk 0:00:07]}  Rb2 {[%clk 0:00:50]} 48. Rc6+ {[%clk 0:00:06]}  Kf5 {[%clk 0:00:50]} 49. Rc5+ {[%clk 0:00:07]}  Kf6 {[%clk 0:00:50]} 50. b5 {[%clk 0:00:07]}  Kg7 {[%clk 0:00:51]} 51. f4 {[%clk 0:00:05]}  Rb3+ {[%clk 0:00:50]} 52. Kf2 {[%clk 0:00:06]}  Kh6 {[%clk 0:00:49]} 53. Re5 {[%clk 0:00:05]}  Kg7 {[%clk 0:00:48]} 54. Rg5 {[%clk 0:00:06]}  Kf6 {[%clk 0:00:48]} 55. g3 {[%clk 0:00:06]}  Rc3 {[%clk 0:00:46]} 56. Ke2 {[%clk 0:00:06]}  Rc8 {[%clk 0:00:42]} 57. Kd3 {[%clk 0:00:06]}  Rc1 {[%clk 0:00:41]} 58. Kd4 {[%clk 0:00:06]}  Rb1 {[%clk 0:00:27]} 59. Kc5 {[%clk 0:00:06]}  Rc1+ {[%clk 0:00:28]} 60. Kb6 {[%clk 0:00:06]}  Rc3 {[%clk 0:00:27]} 61. Kb7 {[%clk 0:00:06]}  Kf7 {[%clk 0:00:25]} 62. b6 {[%clk 0:00:06]}  Rb3 {[%clk 0:00:20]} 63. Ka7 {[%clk 0:00:06]}  Ra3+ {[%clk 0:00:20]} 64. Kb8 {[%clk 0:00:06]}  Kf6 {[%clk 0:00:21]} 65. b7 {[%clk 0:00:07]}  Ke7 {[%clk 0:00:20]} 66. Rc5 {[%clk 0:00:06]}  Kd7 {[%clk 0:00:19]} 67. Rd5+ {[%clk 0:00:07]}  Kc6 {[%clk 0:00:20]} 68. Rg5 {[%clk 0:00:05]}  Kd7 {[%clk 0:00:17]} 69. Rxg6 {[%clk 0:00:05]}  Rb3 {[%clk 0:00:18]} 70. Rg7+ {[%clk 0:00:04]}  Kd8 {[%clk 0:00:17]} 71. f5 {[%clk 0:00:04]}  Rb6 {[%clk 0:00:17]} 72. Rf7 {[%clk 0:00:03]}  Ke8 {[%clk 0:00:17]} 73. Rc7 {[%clk 0:00:03]}  Kd8 {[%clk 0:00:16]} 74. Rc8+ {[%clk 0:00:04]}  Kd7 {[%clk 0:00:17]} 75. Rc7+ {[%clk 0:00:03]}  Kd8 {[%clk 0:00:17]} 76. Rc5 {[%clk 0:00:03]}  Rb1 {[%clk 0:00:16]} 77. Rd5+ {[%clk 0:00:03]}  Ke7 {[%clk 0:00:16]} 78. Kc7 {[%clk 0:00:04]}  Rc1+ {[%clk 0:00:17]} 79. Kb6 {[%clk 0:00:04]}  Kf6 {[%clk 0:00:16]} 80. Rb5 {[%clk 0:00:04]}  Re1 {[%clk 0:00:14]} 81. b8=Q {[%clk 0:00:05]}  Kg7 {[%clk 0:00:13]} 82. Qc7+ {[%clk 0:00:05]}  Kf8 {[%clk 0:00:12]} 83. Rd5 {[%clk 0:00:05]}  Re7 {[%clk 0:00:12]} 84. Qd8+ {[%clk 0:00:05]}  Kf7 {[%clk 0:00:12]} 85. Qxe7+ {[%clk 0:00:05]}  Kxe7 {[%clk 0:00:11]} 86. Kc6 {[%clk 0:00:06]}  Kf6 {[%clk 0:00:12]} 87. Kd6 {[%clk 0:00:07]}  Kg7 {[%clk 0:00:12]} 88. Ke6 {[%clk 0:00:07]}  Kf8 {[%clk 0:00:11]} 89. f6 {[%clk 0:00:08]}  Kg8 {[%clk 0:00:12]} 90. Rd7 {[%clk 0:00:07]}  Kh8 {[%clk 0:00:12]} 91. Kf5 {[%clk 0:00:08]}  Kg8 {[%clk 0:00:12]} 92. Kg6 {[%clk 0:00:09]}  Kf8 {[%clk 0:00:12]} 93. Rd8# {[%clk 0:00:10]} 1-0


[Site "https://www.chess.com"]

[Event "Titled Tuesday Blitz February 14 Late 2023"]
[White "Oro, Faustino"]
[Black "Gutkin, Ilya"]
[WhiteFideId "20000197"]
[BlackFideId "16203470"]
[WhiteElo "2269"]
[BlackElo "2273"]
[Result "1-0"]
[Round "02"]
[TimeControl "180+2"]
[Date "2023.02.14"]
[WhiteClock "0:00:10"]
[BlackClock "0:00:02"]

1. e4 {[%clk 0:03:00]}  e6 {[%clk 0:03:00]} 2. d4 {[%clk 0:03:00]}  d5 {[%clk 0:03:00]} 3. Nd2 {[%clk 0:02:59]}  c5 {[%clk 0:03:00]} 4. Ngf3 {[%clk 0:02:57]}  cxd4 {[%clk 0:03:00]} 5. Nxd4 {[%clk 0:02:55]}  Nc6 {[%clk 0:02:59]} 6. Nxc6 {[%clk 0:02:55]}  bxc6 {[%clk 0:02:59]} 7. Bd3 {[%clk 0:02:56]}  Nf6 {[%clk 0:02:58]} 8. Qe2 {[%clk 0:02:56]}  g6 {[%clk 0:02:57]} 9. O-O {[%clk 0:02:55]}  Bg7 {[%clk 0:02:57]} 10. Rd1 {[%clk 0:02:55]}  O-O {[%clk 0:02:56]} 11. c4 {[%clk 0:02:55]}  Ba6 {[%clk 0:02:52]} 12. cxd5 {[%clk 0:02:31]}  Bxd3 {[%clk 0:02:51]} 13. Qxd3 {[%clk 0:02:32]}  cxd5 {[%clk 0:02:49]} 14. exd5 {[%clk 0:02:26]}  Qxd5 {[%clk 0:02:43]} 15. Qe2 {[%clk 0:02:24]}  Rfd8 {[%clk 0:02:40]} 16. Re1 {[%clk 0:02:12]}  Rac8 {[%clk 0:02:35]} 17. Nf3 {[%clk 0:02:11]}  Qd3 {[%clk 0:01:48]} 18. Be3 {[%clk 0:01:44]}  Qxe2 {[%clk 0:01:20]} 19. Rxe2 {[%clk 0:01:44]}  Nd5 {[%clk 0:01:20]} 20. Bxa7 {[%clk 0:01:30]}  Nf4 {[%clk 0:01:16]} 21. Ree1 {[%clk 0:01:29]}  Bxb2 {[%clk 0:01:13]} 22. Rab1 {[%clk 0:01:29]}  Bc3 {[%clk 0:01:11]} 23. Red1 {[%clk 0:01:11]}  Rxd1+ {[%clk 0:01:10]} 24. Rxd1 {[%clk 0:01:10]}  Nd5 {[%clk 0:01:03]} 25. Be3 {[%clk 0:00:40]}  Ra8 {[%clk 0:00:59]} 26. Rc1 {[%clk 0:00:39]}  Rxa2 {[%clk 0:00:55]} 27. Bh6 {[%clk 0:00:39]}  Ra1 {[%clk 0:00:54]} 28. Rxa1 {[%clk 0:00:38]}  Bxa1 {[%clk 0:00:55]} 29. Kf1 {[%clk 0:00:39]}  f6 {[%clk 0:00:53]} 30. Nd2 {[%clk 0:00:38]}  g5 {[%clk 0:00:50]} 31. Nf3 {[%clk 0:00:34]}  Kf7 {[%clk 0:00:44]} 32. h4 {[%clk 0:00:33]}  g4 {[%clk 0:00:34]} 33. Ne1 {[%clk 0:00:27]}  f5 {[%clk 0:00:30]} 34. Nd3 {[%clk 0:00:26]}  e5 {[%clk 0:00:20]} 35. g3 {[%clk 0:00:19]}  e4 {[%clk 0:00:16]} 36. Nc5 {[%clk 0:00:20]}  Bd4 {[%clk 0:00:13]} 37. Nb3 {[%clk 0:00:19]}  Bb6 {[%clk 0:00:13]} 38. Ke2 {[%clk 0:00:20]}  Ke6 {[%clk 0:00:10]} 39. Bd2 {[%clk 0:00:18]}  Ne7 {[%clk 0:00:09]} 40. Bc3 {[%clk 0:00:17]}  Nc6 {[%clk 0:00:09]} 41. Nd2 {[%clk 0:00:15]}  Ne7 {[%clk 0:00:08]} 42. Nc4 {[%clk 0:00:15]}  Bc5 {[%clk 0:00:08]} 43. Nd2 {[%clk 0:00:13]}  Nd5 {[%clk 0:00:08]} 44. Bb2 {[%clk 0:00:14]}  f4 {[%clk 0:00:08]} 45. Nb3 {[%clk 0:00:13]}  Bb6 {[%clk 0:00:07]} 46. Nd2 {[%clk 0:00:13]}  f3+ {[%clk 0:00:06]} 47. Ke1 {[%clk 0:00:13]}  e3 {[%clk 0:00:06]} 48. fxe3 {[%clk 0:00:11]}  Nxe3 {[%clk 0:00:07]} 49. Ne4 {[%clk 0:00:09]}  Nf5 {[%clk 0:00:08]} 50. Bc1 {[%clk 0:00:09]}  Kd5 {[%clk 0:00:07]} 51. Nf6+ {[%clk 0:00:09]}  Kd4 {[%clk 0:00:07]} 52. Nxg4 {[%clk 0:00:09]}  Nxg3 {[%clk 0:00:07]} 53. Be3+ {[%clk 0:00:09]}  Kd3 {[%clk 0:00:04]} 54. Bxb6 {[%clk 0:00:10]}  Nf5 {[%clk 0:00:04]} 55. Nf2+ {[%clk 0:00:10]}  Kc4 {[%clk 0:00:03]} 56. h5 {[%clk 0:00:11]}  Kd5 {[%clk 0:00:03]} 57. Ba5 {[%clk 0:00:10]}  Ke5 {[%clk 0:00:03]} 58. Bd2 {[%clk 0:00:10]}  Ng3 {[%clk 0:00:03]} 59. h6 {[%clk 0:00:09]}  Nf5 {[%clk 0:00:03]} 60. Ng4+ {[%clk 0:00:10]}  Ke4 {[%clk 0:00:03]} 61. Kf2 {[%clk 0:00:10]}  Nd6 {[%clk 0:00:02]} 62. Nf6+ {[%clk 0:00:10]} 1-0


[Site "https://www.chess.com"]

[Event "Titled Tuesday Blitz February 14 Late 2023"]
[White "Bjelobrk, Igor"]
[Black "Gatterer, Florian"]
[WhiteFideId "4300726"]
[BlackFideId "811688"]
[WhiteElo "2403"]
[BlackElo "2170"]
[Result "1-0"]
[Round "02"]
[TimeControl "180+2"]
[Date "2023.02.14"]
[WhiteClock "0:00:20"]
[BlackClock "0:00:01"]

1. d4 {[%clk 0:03:00]}  d5 {[%clk 0:02:59]} 2. c4 {[%clk 0:02:59]}  c6 {[%clk 0:02:59]} 3. g3 {[%clk 0:02:55]}  Nf6 {[%clk 0:02:58]} 4. Bg2 {[%clk 0:02:54]}  g6 {[%clk 0:02:59]} 5. Nf3 {[%clk 0:02:49]}  Bg7 {[%clk 0:02:59]} 6. O-O {[%clk 0:02:49]}  O-O {[%clk 0:02:59]} 7. a4 {[%clk 0:02:48]}  Bf5 {[%clk 0:02:55]} 8. Nc3 {[%clk 0:02:40]}  dxc4 {[%clk 0:02:49]} 9. Ne5 {[%clk 0:02:38]}  Ng4 {[%clk 0:02:42]} 10. Nxc4 {[%clk 0:02:08]}  Bxd4 {[%clk 0:02:27]} 11. Qb3 {[%clk 0:01:54]}  Be6 {[%clk 0:02:26]} 12. Bf4 {[%clk 0:01:50]}  Nxf2 {[%clk 0:01:53]} 13. e3 {[%clk 0:01:24]}  Na6 {[%clk 0:00:55]} 14. Rxf2 {[%clk 0:01:16]}  Nc5 {[%clk 0:00:51]} 15. Qc2 {[%clk 0:01:08]}  Bxc4 {[%clk 0:00:46]} 16. exd4 {[%clk 0:01:08]}  Nd3 {[%clk 0:00:44]} 17. Be3 {[%clk 0:00:57]}  Nxf2 {[%clk 0:00:42]} 18. Bxf2 {[%clk 0:00:58]}  Bd5 {[%clk 0:00:42]} 19. Nxd5 {[%clk 0:00:57]}  cxd5 {[%clk 0:00:42]} 20. Qb3 {[%clk 0:00:58]}  e6 {[%clk 0:00:40]} 21. Bf1 {[%clk 0:00:52]}  b6 {[%clk 0:00:37]} 22. Ba6 {[%clk 0:00:50]}  Qg5 {[%clk 0:00:29]} 23. Be3 {[%clk 0:00:47]}  Qf5 {[%clk 0:00:28]} 24. Rc1 {[%clk 0:00:43]}  h5 {[%clk 0:00:26]} 25. h4 {[%clk 0:00:38]}  Qf3 {[%clk 0:00:24]} 26. Kh2 {[%clk 0:00:35]}  Rad8 {[%clk 0:00:13]} 27. Rf1 {[%clk 0:00:35]}  Qe4 {[%clk 0:00:12]} 28. Rf4 {[%clk 0:00:31]}  Qb1 {[%clk 0:00:11]} 29. Rf2 {[%clk 0:00:29]}  Qe1 {[%clk 0:00:10]} 30. Kg2 {[%clk 0:00:28]}  f6 {[%clk 0:00:08]} 31. Qd3 {[%clk 0:00:27]}  Kg7 {[%clk 0:00:07]} 32. Bf4 {[%clk 0:00:26]}  Qb4 {[%clk 0:00:05]} 33. b3 {[%clk 0:00:22]}  e5 {[%clk 0:00:04]} 34. dxe5 {[%clk 0:00:21]}  Qe4+ {[%clk 0:00:03]} 35. Qxe4 {[%clk 0:00:21]}  dxe4 {[%clk 0:00:03]} 36. exf6+ {[%clk 0:00:22]}  Kxf6 {[%clk 0:00:01]} 37. Bg5+ {[%clk 0:00:22]}  Ke6 {[%clk 0:00:01]} 38. Bxd8 {[%clk 0:00:23]}  Rxd8 {[%clk 0:00:02]} 39. Re2 {[%clk 0:00:22]}  Kf5 {[%clk 0:00:01]} 40. Bb7 {[%clk 0:00:22]}  Rd4 {[%clk 0:00:01]} 41. Kf2 {[%clk 0:00:22]}  Rb4 {[%clk 0:00:01]} 42. Bd5 {[%clk 0:00:20]} 1-0


[Site "https://www.chess.com"]

[Event "Titled Tuesday Blitz February 14 Late 2023"]
[White "Figorito, Nick"]
[Black "Rorrer, Grayson"]
[WhiteFideId "30923689"]
[BlackFideId "30944996"]
[WhiteElo "2036"]
[BlackElo "2263"]
[Result "0-1"]
[Round "02"]
[TimeControl "180+2"]
[Date "2023.02.14"]
[WhiteClock "0:00:47"]
[BlackClock "0:00:39"]

1. Nf3 {[%clk 0:02:59]}  d6 {[%clk 0:02:56]} 2. g3 {[%clk 0:02:59]}  e5 {[%clk 0:02:56]} 3. Bg2 {[%clk 0:02:59]}  f5 {[%clk 0:02:56]} 4. O-O {[%clk 0:02:59]}  Nf6 {[%clk 0:02:57]} 5. c4 {[%clk 0:03:00]}  Be7 {[%clk 0:02:56]} 6. Nc3 {[%clk 0:03:00]}  O-O {[%clk 0:02:56]} 7. d3 {[%clk 0:02:59]}  c6 {[%clk 0:02:55]} 8. c5 {[%clk 0:02:57]}  h6 {[%clk 0:02:53]} 9. cxd6 {[%clk 0:02:56]}  Bxd6 {[%clk 0:02:54]} 10. Bd2 {[%clk 0:02:41]}  Be6 {[%clk 0:02:49]} 11. Qc2 {[%clk 0:02:30]}  Nbd7 {[%clk 0:02:47]} 12. a3 {[%clk 0:02:29]}  Qe7 {[%clk 0:02:46]} 13. b4 {[%clk 0:02:27]}  Kh8 {[%clk 0:02:41]} 14. Na4 {[%clk 0:02:23]}  g5 {[%clk 0:02:36]} 15. Be3 {[%clk 0:02:07]}  f4 {[%clk 0:02:35]} 16. Bc5 {[%clk 0:02:06]}  Bf5 {[%clk 0:02:20]} 17. Bxd6 {[%clk 0:02:02]}  Qxd6 {[%clk 0:02:21]} 18. Nc5 {[%clk 0:02:00]}  Nxc5 {[%clk 0:02:13]} 19. bxc5 {[%clk 0:02:00]}  Qe7 {[%clk 0:02:13]} 20. Qb2 {[%clk 0:01:54]}  e4 {[%clk 0:02:05]} 21. dxe4 {[%clk 0:01:43]}  Bxe4 {[%clk 0:02:06]} 22. a4 {[%clk 0:01:28]}  Kh7 {[%clk 0:02:00]} 23. a5 {[%clk 0:01:26]}  Rab8 {[%clk 0:01:59]} 24. Qb4 {[%clk 0:01:23]}  Bd5 {[%clk 0:01:50]} 25. Qb1+ {[%clk 0:01:20]}  Kh8 {[%clk 0:01:48]} 26. Qc2 {[%clk 0:01:17]}  Ne4 {[%clk 0:01:43]} 27. Nd4 {[%clk 0:01:09]}  Qe5 {[%clk 0:01:22]} 28. Rad1 {[%clk 0:01:00]}  fxg3 {[%clk 0:01:10]} 29. hxg3 {[%clk 0:00:57]}  Nxf2 {[%clk 0:01:01]} 30. Rxf2 {[%clk 0:00:52]}  Rxf2 {[%clk 0:00:51]} 31. Kxf2 {[%clk 0:00:52]}  Rf8+ {[%clk 0:00:51]} 32. Kg1 {[%clk 0:00:53]}  Qe3+ {[%clk 0:00:47]} 33. Kh1 {[%clk 0:00:47]}  Bxg2+ {[%clk 0:00:40]} 34. Kxg2 {[%clk 0:00:48]}  Rf2+ {[%clk 0:00:40]} 35. Kh1 {[%clk 0:00:47]}  Qxg3 {[%clk 0:00:39]} 0-1


[Site "https://www.chess.com"]

[Event "Titled Tuesday Blitz February 14 Late 2023"]
[White "Papasimakopoulos, Alexandros"]
[Black "Delorme, Axel"]
[WhiteFideId "4244125"]
[BlackFideId "632023"]
[WhiteElo "2401"]
[BlackElo "2483"]
[Result "1-0"]
[Round "02"]
[TimeControl "180+2"]
[Date "2023.02.14"]
[WhiteClock "0:00:15"]
[BlackClock "0:00:15"]

1. d4 {[%clk 0:03:00]}  d5 {[%clk 0:02:59]} 2. c4 {[%clk 0:03:00]}  e6 {[%clk 0:02:56]} 3. Nc3 {[%clk 0:03:01]}  c6 {[%clk 0:02:55]} 4. Nf3 {[%clk 0:02:59]}  dxc4 {[%clk 0:02:54]} 5. e3 {[%clk 0:02:59]}  b5 {[%clk 0:02:54]} 6. a4 {[%clk 0:03:00]}  Bb4 {[%clk 0:02:52]} 7. Rb1 {[%clk 0:03:00]}  a6 {[%clk 0:02:44]} 8. Bd2 {[%clk 0:03:00]}  Bb7 {[%clk 0:02:43]} 9. b3 {[%clk 0:02:59]}  cxb3 {[%clk 0:02:38]} 10. Qxb3 {[%clk 0:03:00]}  Be7 {[%clk 0:02:34]} 11. Be2 {[%clk 0:02:59]}  Nf6 {[%clk 0:02:34]} 12. O-O {[%clk 0:02:59]}  O-O {[%clk 0:02:35]} 13. Rfc1 {[%clk 0:02:55]}  b4 {[%clk 0:02:33]} 14. Nd1 {[%clk 0:02:38]}  a5 {[%clk 0:02:30]} 15. Ne5 {[%clk 0:02:38]}  c5 {[%clk 0:02:14]} 16. Bf3 {[%clk 0:02:24]}  Bxf3 {[%clk 0:02:11]} 17. Nxf3 {[%clk 0:02:25]}  Nbd7 {[%clk 0:01:59]} 18. Nb2 {[%clk 0:02:24]}  Rc8 {[%clk 0:01:53]} 19. Nc4 {[%clk 0:02:23]}  Ne4 {[%clk 0:01:48]} 20. Qd3 {[%clk 0:02:19]}  Nxd2 {[%clk 0:01:44]} 21. Nfxd2 {[%clk 0:02:20]}  cxd4 {[%clk 0:01:42]} 22. Qxd4 {[%clk 0:02:11]}  Nc5 {[%clk 0:01:37]} 23. Nf3 {[%clk 0:02:01]}  Nxa4 {[%clk 0:01:25]} 24. Qxd8 {[%clk 0:01:59]}  Rfxd8 {[%clk 0:01:19]} 25. Nxa5 {[%clk 0:01:59]}  Nc3 {[%clk 0:01:20]} 26. Kf1 {[%clk 0:01:44]}  Nxb1 {[%clk 0:01:16]} 27. Rxb1 {[%clk 0:01:45]}  Rc3 {[%clk 0:00:58]} 28. Nb3 {[%clk 0:01:40]}  g5 {[%clk 0:00:52]} 29. h3 {[%clk 0:01:40]}  Kg7 {[%clk 0:00:51]} 30. Rb2 {[%clk 0:01:36]}  Bf6 {[%clk 0:00:44]} 31. Rb1 {[%clk 0:01:33]}  e5 {[%clk 0:00:41]} 32. Nbd2 {[%clk 0:01:28]}  Rb8 {[%clk 0:00:35]} 33. Ne4 {[%clk 0:01:27]}  Rc2 {[%clk 0:00:34]} 34. Rb3 {[%clk 0:01:24]}  Kg6 {[%clk 0:00:28]} 35. g4 {[%clk 0:01:24]}  h6 {[%clk 0:00:26]} 36. Ne1 {[%clk 0:01:22]}  Ra2 {[%clk 0:00:25]} 37. Nc5 {[%clk 0:01:01]}  Ra3 {[%clk 0:00:24]} 38. Rb1 {[%clk 0:00:59]}  b3 {[%clk 0:00:23]} 39. Ned3 {[%clk 0:00:59]}  e4 {[%clk 0:00:20]} 40. Nxe4 {[%clk 0:00:58]}  Ra1 {[%clk 0:00:21]} 41. Rxa1 {[%clk 0:00:57]}  Bxa1 {[%clk 0:00:22]} 42. Nd2 {[%clk 0:00:56]}  Bc3 {[%clk 0:00:20]} 43. Nb1 {[%clk 0:00:55]}  Bf6 {[%clk 0:00:20]} 44. Ke2 {[%clk 0:00:47]}  b2 {[%clk 0:00:21]} 45. e4 {[%clk 0:00:47]}  Ra8 {[%clk 0:00:21]} 46. Kd2 {[%clk 0:00:47]}  Rc8 {[%clk 0:00:19]} 47. e5 {[%clk 0:00:47]}  Bg7 {[%clk 0:00:18]} 48. Nxb2 {[%clk 0:00:47]}  Bxe5 {[%clk 0:00:16]} 49. Nd3 {[%clk 0:00:48]}  Bg7 {[%clk 0:00:14]} 50. Na3 {[%clk 0:00:47]}  f5 {[%clk 0:00:12]} 51. Nb5 {[%clk 0:00:44]}  fxg4 {[%clk 0:00:12]} 52. hxg4 {[%clk 0:00:44]}  h5 {[%clk 0:00:13]} 53. gxh5+ {[%clk 0:00:43]}  Kxh5 {[%clk 0:00:14]} 54. Nd6 {[%clk 0:00:43]}  Rf8 {[%clk 0:00:14]} 55. Ke2 {[%clk 0:00:43]}  Kg4 {[%clk 0:00:14]} 56. Ne4 {[%clk 0:00:41]}  Re8 {[%clk 0:00:14]} 57. f3+ {[%clk 0:00:42]}  Kf5 {[%clk 0:00:14]} 58. Kf2 {[%clk 0:00:41]}  Rd8 {[%clk 0:00:13]} 59. Nb4 {[%clk 0:00:37]}  Be5 {[%clk 0:00:13]} 60. Nc6 {[%clk 0:00:37]}  Rc8 {[%clk 0:00:12]} 61. Ne7+ {[%clk 0:00:37]}  Kf4 {[%clk 0:00:11]} 62. Ng6+ {[%clk 0:00:22]}  Kf5 {[%clk 0:00:10]} 63. Ne7+ {[%clk 0:00:21]}  Kf4 {[%clk 0:00:11]} 64. Nxc8 {[%clk 0:00:21]}  g4 {[%clk 0:00:11]} 65. Nd2 {[%clk 0:00:19]}  Bd4+ {[%clk 0:00:10]} 66. Kg2 {[%clk 0:00:16]}  Be3 {[%clk 0:00:10]} 67. fxg4 {[%clk 0:00:14]}  Bxd2 {[%clk 0:00:09]} 68. Kh3 {[%clk 0:00:15]}  Kg5 {[%clk 0:00:10]} 69. Nd6 {[%clk 0:00:15]}  Kf6 {[%clk 0:00:10]} 70. Ne4+ {[%clk 0:00:15]}  Kg6 {[%clk 0:00:10]} 71. Nxd2 {[%clk 0:00:16]}  Kf6 {[%clk 0:00:11]} 72. Kh4 {[%clk 0:00:14]}  Kg6 {[%clk 0:00:12]} 73. g5 {[%clk 0:00:13]}  Kg7 {[%clk 0:00:13]} 74. Kh5 {[%clk 0:00:13]}  Kh7 {[%clk 0:00:13]} 75. g6+ {[%clk 0:00:13]}  Kg7 {[%clk 0:00:14]} 76. Kg5 {[%clk 0:00:14]}  Kg8 {[%clk 0:00:14]} 77. Kh6 {[%clk 0:00:14]}  Kh8 {[%clk 0:00:14]} 78. g7+ {[%clk 0:00:15]}  Kg8 {[%clk 0:00:15]} 79. Nb1 {[%clk 0:00:15]} 1-0


[Site "https://www.chess.com"]